bitfinex-derivatives/quotes_BTCF0:USTF0_20250130
["timestamp","ask_amount","ask_price","bid_price","bid_amount"]
[1738261109913,0.33396655,105310.0,105300.0,0.42571316]
[1738261110092,0.33896655,105310.0,105300.0,0.42571316]
[1738261110802,0.33996655,105310.0,105300.0,0.42671316]
[1738261112106,0.19804858,105310.0,105300.0,0.42671316]
[1738261115410,0.55884858,105310.0,105300.0,0.322623]
[1738261115905,0.66293874,105310.0,105300.0,0.101]
[1738261116100,0.72653874,105310.0,105300.0,0.101]
[1738261116402,0.75973874,105310.0,105300.0,0.101]
[1738261116604,0.78625874,105310.0,105300.0,0.101]
[1738261119111,0.78625874,105310.0,105300.0,0.290923]
[1738261120509,0.78625874,105310.0,105300.0,0.17796322]
[1738261120711,0.79434915,105310.0,105300.0,0.18796322]
[1738261121400,0.69025899,105310.0,105300.0,0.18796322]
[1738261122311,0.79434915,105310.0,105300.0,0.18796322]
[1738261122496,0.69025899,105310.0,105300.0,0.18796322]
[1738261123409,0.69025899,105310.0,105300.0,0.01]
[1738261123607,0.69025899,105310.0,105300.0,0.199923]
[1738261125209,0.83237485,105310.0,105300.0,0.199923]
[1738261126712,0.79917485,105310.0,105300.0,0.199923]
[1738261127307,0.76867485,105310.0,105300.0,0.199923]
[1738261128602,0.74215485,105310.0,105300.0,0.199923]
[1738261129000,0.84624501,105310.0,105300.0,0.199923]
[1738261129509,0.71374503,105310.0,105300.0,0.199923]
[1738261131119,0.67255462,105310.0,105300.0,0.30401316]
[1738261131308,0.31175462,105310.0,105300.0,0.30401316]
[1738261131508,0.31175462,105310.0,105300.0,0.33621316]
[1738261131704,0.45387048,105310.0,105300.0,0.33621316]
[1738261132114,0.45387048,105310.0,105300.0,0.69701316]
[1738261136108,0.45387048,105310.0,105300.0,0.33621316]
[1738261137426,0.45387048,105310.0,105300.0,0.34445074]
[1738261138920,0.81467048,105310.0,105300.0,0.15452774]
[1738261139121,0.81467048,105310.0,105280.0,0.00014258]
[1738261139122,0.8594248,105310.0,105280.0,0.00014258]
[1738261139419,1.01563116,105290.0,105280.0,0.05014258]
[1738261140327,1.01563116,105290.0,105280.0,0.33409404]
[1738261140516,1.04663116,105290.0,105280.0,0.28409404]
[1738261140826,1.04663116,105290.0,105270.0,0.34058942]
[1738261140827,0.189959,105280.0,105270.0,0.34058942]
[1738261141024,0.68132916,105280.0,105270.0,0.34058942]
[1738261142228,0.78541932,105280.0,105270.0,0.34058942]
[1738261143528,0.78741932,105280.0,105270.0,0.34058942]
[1738261143924,0.78741932,105280.0,105260.0,0.69554112]
[1738261143925,0.189977,105270.0,105260.0,0.00014258]
[1738261144126,0.79055732,105270.0,105260.0,0.00014258]
[1738261145131,0.82305732,105270.0,105260.0,0.00114258]
[1738261145631,0.71896716,105270.0,105260.0,0.00114258]
[1738261145828,0.68646716,105270.0,105260.0,0.00114258]
[1738261146831,0.79991081,105270.0,105260.0,0.00114258]
[1738261147032,0.80799972,105270.0,105260.0,0.00114258]
[1738261147833,0.91208988,105270.0,105260.0,0.00114258]
[1738261148026,0.80799972,105270.0,105260.0,0.00114258]
[1738261149025,0.80291972,105270.0,105260.0,0.00114258]
[1738261149218,0.80291972,105270.0,105260.0,0.03434258]
[1738261149423,0.80291972,105270.0,105260.0,0.00114258]
[1738261150332,0.68947607,105270.0,105260.0,0.00114258]
[1738261150526,0.66295607,105270.0,105260.0,0.00114258]
[1738261150825,0.76704623,105270.0,105260.0,0.00114258]
[1738261151219,0.047498,105260.0,105230.0,0.04123534]
[1738261151420,0.75901132,105240.0,105230.0,0.15493534]
[1738261151629,0.75901132,105240.0,105230.0,0.1469]
[1738261151630,0.65492116,105240.0,105230.0,0.1469]
[1738261151821,0.65492116,105240.0,105230.0,0.0969]
[1738261152231,0.75901132,105240.0,105230.0,0.01]
[1738261152424,0.78553132,105240.0,105230.0,0.003]
[1738261152621,0.78553132,105240.0,105230.0,0.012]
[1738261153127,0.59650032,105240.0,105230.0,0.012]
[1738261153327,0.83403932,105240.0,105230.0,0.012]
[1738261153827,0.83303932,105240.0,105230.0,0.009]
[1738261154434,0.72894916,105240.0,105230.0,0.009]
[1738261155525,0.72894916,105240.0,105230.0,0.008]
[1738261156331,0.70242916,105240.0,105230.0,0.008]
[1738261159631,0.70242916,105240.0,105230.0,0.198049]
[1738261159932,0.70242916,105240.0,105230.0,0.231149]
[1738261161522,0.70242916,105240.0,105230.0,0.241149]
[1738261165039,0.70242916,105240.0,105230.0,0.231149]
[1738261166333,0.70242916,105240.0,105230.0,0.0411]
[1738261167239,0.70242916,105240.0,105230.0,0.0718]
[1738261168239,0.70242916,105240.0,105230.0,0.261849]
[1738261169428,0.70242916,105240.0,105230.0,0.0718]
[1738261171734,0.81587281,105240.0,105230.0,0.0718]
[1738261175148,0.95767737,105240.0,105230.0,0.0718]
[1738261175345,1.06176753,105240.0,105230.0,0.008]
[1738261175644,1.12356753,105240.0,105230.0,0.008]
[1738261175843,0.98847737,105240.0,105230.0,0.008]
[1738261176045,1.01499737,105240.0,105230.0,0.008]
[1738261176345,1.01499737,105240.0,105230.0,0.0716]
[1738261176641,0.44527921,105240.0,105230.0,0.36573916]
[1738261176848,0.44527921,105240.0,105230.0,0.40663916]
[1738261177847,0.44527921,105240.0,105230.0,0.43315916]
[1738261179343,0.30347465,105240.0,105230.0,0.43315916]
[1738261180144,0.40756481,105240.0,105230.0,0.329069]
[1738261180339,0.76836481,105240.0,105230.0,0.302549]
[1738261180541,0.40756481,105240.0,105230.0,0.302549]
[1738261180742,0.30347465,105240.0,105230.0,0.302549]
[1738261181638,0.30347465,105240.0,105230.0,0.76743916]
[1738261183039,0.11344365,105240.0,105230.0,0.76743916]
[1738261183644,0.11344365,105240.0,105230.0,2.26743916]
[1738261185352,0.11344365,105240.0,105230.0,0.76743916]
[1738261185839,0.40756481,105240.0,105230.0,0.663349]
[1738261186043,0.40756481,105240.0,105230.0,0.1125]
[1738261186242,0.29412116,105240.0,105230.0,0.39637612]
[1738261186552,0.29412116,105240.0,105230.0,0.36547612]
[1738261186850,0.75901132,105240.0,105230.0,0.29187612]
[1738261188452,0.75901132,105240.0,105230.0,0.29087612]
[1738261188645,0.75901132,105240.0,105230.0,0.28487612]
[1738261188842,0.75901132,105240.0,105230.0,0.28787612]
[1738261189453,0.76101132,105240.0,105230.0,0.28487612]
[1738261189958,0.76101132,105240.0,105230.0,0.28387612]
[1738261190153,0.76201132,105240.0,105230.0,0.28387612]
[1738261190752,0.190049,105230.0,105220.0,0.00014258]
[1738261190953,0.71355916,105230.0,105220.0,0.00014258]
[1738261194347,1.02620362,105230.0,105220.0,0.00014258]
[1738261198148,0.96930206,105230.0,105220.0,0.00014258]
[1738261201557,0.96930206,105230.0,105200.0,0.1636]
[1738261201558,0.88334322,105230.0,105200.0,0.1636]
[1738261201746,1.01577616,105210.0,105200.0,0.1325]
[1738261201946,1.04229616,105210.0,105200.0,0.1325]
[1738261202150,1.14638632,105210.0,105200.0,0.1]
[1738261202554,1.17688632,105210.0,105200.0,0.1]
[1738261202851,1.17688632,105210.0,105200.0,0.102]
[1738261203250,1.17688632,105210.0,105200.0,0.108]
[1738261203949,1.17688632,105210.0,105200.0,0.107]
[1738261204353,1.15036632,105210.0,105200.0,0.101]
[1738261204550,1.04229616,105210.0,105200.0,0.104]
[1738261204854,1.05091803,105210.0,105200.0,0.104]
[1738261205451,1.15500819,105210.0,105200.0,0.104]
[1738261205853,1.32554153,105210.0,105200.0,0.104]
[1738261207464,0.190122,105190.0,105180.0,0.220136]
[1738261207662,0.65501216,105190.0,105180.0,0.220136]
[1738261208051,0.550922,105190.0,105180.0,0.220136]
[1738261208255,0.190122,105190.0,105180.0,0.220136]
[1738261208455,0.3608,105190.0,105180.0,0.32422616]
[1738261208658,0.55105258,105200.0,105180.0,0.23818032]
[1738261208851,0.36094258,105200.0,105190.0,0.32093216]
[1738261209059,0.31104258,105200.0,105190.0,0.32093216]
[1738261209363,0.31104258,105200.0,105190.0,0.216842]
[1738261209559,0.50114658,105200.0,105190.0,0.216842]
[1738261210863,0.50114658,105200.0,105190.0,0.222842]
[1738261212364,0.50114658,105200.0,105190.0,0.36073216]
[1738261213065,0.19024658,105200.0,105190.0,0.256642]
[1738261213455,0.19024658,105200.0,105190.0,0.36073216]
[1738261214251,0.19024658,105200.0,105190.0,0.33401216]
[1738261214458,0.19024658,105200.0,105190.0,0.256562]
[1738261214658,0.19024658,105200.0,105190.0,0.229922]
[1738261214854,0.19024658,105200.0,105190.0,0.256562]
[1738261216457,0.19024658,105200.0,105190.0,0.36065216]
[1738261217068,0.19024658,105200.0,105190.0,0.256562]
[1738261217560,0.00014258,105200.0,105190.0,0.72145216]
[1738261217765,0.550891,105210.0,105200.0,0.190104]
[1738261217963,0.0850192,105220.0,105200.0,0.63589016]
[1738261218159,0.0850192,105220.0,105210.0,0.68157616]
[1738261218362,0.0850192,105220.0,105210.0,0.72157616]
[1738261218555,0.0850192,105220.0,105210.0,0.68157616]
[1738261218755,0.0850192,105220.0,105210.0,0.72157616]
[1738261218961,0.25520019,105230.0,105210.0,0.53149016]
[1738261219162,0.17067592,105230.0,105220.0,0.581167]
[1738261219975,0.17067592,105230.0,105220.0,0.68525716]
[1738261220171,0.17067592,105230.0,105220.0,0.581167]
[1738261220465,0.63556608,105230.0,105200.0,0.47038458]
[1738261220658,0.55088,105220.0,105210.0,0.190081]
[1738261220854,0.19008,105220.0,105210.0,0.190081]
[1738261221265,0.55088,105220.0,105210.0,0.190081]
[1738261221566,0.29417016,105220.0,105210.0,0.190081]
[1738261222167,0.19008,105220.0,105210.0,0.190081]
[1738261222368,0.29417016,105220.0,105210.0,0.190081]
[1738261222567,0.19008,105220.0,105210.0,0.190081]
[1738261223361,0.29417016,105220.0,105210.0,0.190081]
[1738261223972,0.55088,105220.0,105210.0,0.190081]
[1738261224476,0.65497016,105220.0,105210.0,0.190081]
[1738261225572,0.55088,105220.0,105210.0,0.190081]
[1738261233375,0.65497016,105220.0,105210.0,0.190081]
[1738261238377,0.55088,105220.0,105210.0,0.190081]
[1738261238578,0.55088,105220.0,105200.0,0.22992805]
[1738261238579,0.190086,105210.0,105200.0,0.22992805]
[1738261238777,0.190086,105210.0,105200.0,0.19912805]
[1738261239080,0.221886,105210.0,105200.0,0.19912805]
[1738261240077,0.251986,105210.0,105200.0,0.20212805]
[1738261240967,0.251986,105210.0,105200.0,0.42965292]
[1738261241273,0.10615736,105220.0,105210.0,0.190085]
[1738261241474,0.31271139,105230.0,105210.0,0.190085]
[1738261241475,0.31271139,105230.0,105220.0,0.190067]
[1738261241673,0.31271139,105230.0,105220.0,0.93241716]
[1738261242882,0.31571139,105230.0,105220.0,0.93241716]
[1738261244176,0.19901463,105240.0,105230.0,0.190049]
[1738261244479,0.19901463,105240.0,105230.0,0.79713916]
[1738261245268,0.20101463,105240.0,105230.0,0.79713916]
[1738261245472,0.20701463,105240.0,105230.0,0.79713916]
[1738261245681,0.008,105240.0,105230.0,0.79713916]
[1738261246882,0.008,105240.0,105230.0,0.68713916]
[1738261247282,0.008,105240.0,105230.0,0.72713916]
[1738261248278,0.47289016,105240.0,105220.0,0.68466875]
[1738261248477,0.65493916,105230.0,105220.0,0.2840187]
[1738261248783,0.581649,105230.0,105220.0,0.4740857]
[1738261250083,0.583649,105230.0,105220.0,0.4740857]
[1738261251778,0.584649,105230.0,105220.0,0.4740857]
[1738261252086,0.584649,105230.0,105220.0,0.2840187]
[1738261252087,0.68873916,105230.0,105220.0,0.2840187]
[1738261252282,0.72003916,105230.0,105220.0,0.2840187]
[1738261252780,0.615949,105230.0,105220.0,0.2840187]
[1738261253882,0.615949,105230.0,105220.0,0.00014258]
[1738261254083,0.72003916,105230.0,105220.0,0.00014258]
[1738261259089,0.72003916,105230.0,105220.0,0.19020958]
[1738261259389,0.615949,105230.0,105220.0,0.19020958]
[1738261259583,0.584649,105230.0,105220.0,0.29429974]
[1738261259777,0.584649,105230.0,105220.0,0.22310958]
[1738261259980,0.584649,105230.0,105220.0,1.72310958]
[1738261260493,0.584649,105230.0,105220.0,1.82719974]
[1738261260794,0.553849,105230.0,105220.0,1.85729974]
[1738261262393,0.553849,105230.0,105220.0,0.25320958]
[1738261263393,0.553849,105230.0,105220.0,0.35729974]
[1738261263590,0.003,105230.0,105220.0,0.81809974]
[1738261263890,0.00014258,105250.0,105240.0,0.190031]
[1738261264089,0.19015558,105250.0,105240.0,0.68144116]
[1738261264286,0.19015558,105250.0,105240.0,0.577351]
[1738261265288,0.19015558,105250.0,105240.0,0.216551]
[1738261265697,0.19515558,105250.0,105240.0,0.216551]
[1738261266381,0.19715558,105250.0,105240.0,0.216551]
[1738261267192,0.00714258,105250.0,105240.0,0.32064116]
[1738261268184,0.19715558,105250.0,105240.0,0.216551]
[1738261268581,0.19715558,105250.0,105240.0,0.190031]
[1738261268797,0.30124574,105250.0,105240.0,0.190031]
[1738261268989,0.19715558,105250.0,105240.0,0.190031]
[1738261269189,0.19715558,105250.0,105240.0,0.29412116]
[1738261270496,0.19715558,105250.0,105240.0,0.190031]
[1738261270695,0.19715558,105250.0,105240.0,0.29412116]
[1738261270999,0.00714258,105250.0,105240.0,0.29412116]
[1738261271199,0.00714258,105250.0,105240.0,0.39821132]
[1738261271493,0.00714258,105250.0,105240.0,0.75901132]
[1738261271696,0.00714258,105250.0,105240.0,0.65492116]
[1738261272098,0.00714258,105250.0,105240.0,0.29412116]
[1738261272398,0.00714258,105250.0,105240.0,0.32412116]
[1738261272693,0.00714258,105250.0,105240.0,0.68492116]
[1738261272899,0.00714258,105250.0,105240.0,0.32412116]
[1738261274000,0.00714258,105250.0,105240.0,0.50307247]
[1738261274597,0.00714258,105250.0,105240.0,0.52307247]
[1738261274795,0.19715958,105250.0,105240.0,0.50307247]
[1738261275201,0.19715958,105250.0,105240.0,0.52967247]
[1738261276289,0.00714258,105250.0,105240.0,0.52967247]
[1738261276998,0.00714258,105250.0,105240.0,0.63376263]
[1738261277191,0.00714258,105250.0,105240.0,0.99456263]
[1738261278290,0.00714258,105250.0,105240.0,1.03456263]
[1738261280298,0.00714258,105250.0,105240.0,0.93047247]
[1738261280494,0.00714258,105250.0,105240.0,1.03456263]
[1738261280699,0.00714258,105250.0,105240.0,0.93047247]
[1738261281002,0.00714258,105250.0,105240.0,1.03456263]
[1738261281602,0.00714258,105250.0,105240.0,1.26138423]
[1738261281791,0.220189,105270.0,105260.0,0.189999]
[1738261281986,0.220189,105270.0,105260.0,0.32064916]
[1738261282701,0.220189,105270.0,105260.0,0.35194916]
[1738261282891,0.224189,105270.0,105260.0,0.35194916]
[1738261284292,0.584989,105270.0,105260.0,0.247859]
[1738261284498,0.584989,105270.0,105260.0,0.05786]
[1738261284894,0.586989,105270.0,105260.0,0.001]
[1738261285201,0.69107916,105270.0,105260.0,0.001]
[1738261285499,0.586989,105270.0,105260.0,0.001]
[1738261285701,0.226189,105270.0,105260.0,0.29508916]
[1738261286291,0.226189,105270.0,105260.0,0.32688916]
[1738261286692,0.0362,105270.0,105260.0,0.32688916]
[1738261289301,0.0362,105270.0,105260.0,0.33574832]
[1738261292805,0.006,105270.0,105260.0,0.50586452]
[1738261293007,0.006,105270.0,105260.0,0.53596452]
[1738261295010,0.002,105270.0,105260.0,0.53596452]
[1738261295205,0.003,105270.0,105260.0,0.53596452]
[1738261295906,0.001,105270.0,105260.0,0.53496452]
[1738261296106,0.003,105270.0,105260.0,0.53496452]
[1738261298302,0.003,105270.0,105260.0,0.76178612]
[1738261299511,0.192996,105270.0,105260.0,0.76178612]
[1738261299908,0.003,105270.0,105260.0,0.76178612]
[1738261300704,0.003,105270.0,105260.0,1.12258612]
[1738261301104,0.003,105270.0,105260.0,1.13258612]
[1738261302509,0.003,105270.0,105260.0,0.73564832]
[1738261305920,0.003,105270.0,105260.0,1.24634604]
[1738261309020,0.003,105270.0,105260.0,1.23634604]
[1738261309221,0.003,105270.0,105260.0,1.48023918]
[1738261309516,0.00014258,105280.0,105270.0,0.189996]
[1738261309816,0.00014258,105280.0,105270.0,0.93891632]
[1738261310011,0.00014258,105280.0,105270.0,2.43891632]
[1738261311113,0.00214258,105280.0,105270.0,2.43891632]
[1738261312317,0.00214258,105280.0,105270.0,0.44738616]
[1738261312522,0.19212058,105280.0,105270.0,0.35398616]
[1738261313407,0.19212058,105280.0,105270.0,0.86468388]
[1738261317530,0.30586151,105280.0,105270.0,0.35398616]
[1738261318422,0.11588351,105280.0,105270.0,0.45807632]
[1738261319225,0.30586151,105280.0,105270.0,0.35398616]
[1738261321222,0.19212058,105280.0,105270.0,0.75100208]
[1738261321630,0.19212058,105280.0,105270.0,1.11180208]
[1738261322621,0.19212058,105280.0,105270.0,0.75100208]
[1738261322831,0.00214258,105280.0,105270.0,0.75100208]
[1738261323033,0.00214258,105280.0,105270.0,1.11180208]
[1738261323331,0.00214258,105280.0,105270.0,0.75100208]
[1738261323631,0.00214258,105280.0,105270.0,1.11180208]
[1738261324330,0.00214258,105280.0,105270.0,0.75100208]
[1738261324526,0.19212058,105280.0,105270.0,0.75100208]
[1738261324934,0.19212058,105280.0,105270.0,0.86468388]
[1738261325124,0.19212058,105280.0,105270.0,1.22548388]
[1738261325125,0.00214258,105280.0,105270.0,1.22548388]
[1738261326334,0.00214258,105280.0,105270.0,1.34957404]
[1738261327031,0.00214258,105280.0,105270.0,1.24548388]
[1738261329127,0.00214258,105280.0,105270.0,1.48878142]
[1738261331235,0.00214258,105280.0,105270.0,1.10138142]
[1738261331429,0.65701074,105280.0,105270.0,0.58064926]
[1738261331624,0.190014,105260.0,105250.0,0.00014258]
[1738261331839,0.190032,105250.0,105240.0,0.77968249]
[1738261332147,0.74822216,105250.0,105240.0,0.77968249]
[1738261333430,0.644132,105250.0,105240.0,0.96973249]
[1738261334744,0.74922216,105250.0,105240.0,0.96973249]
[1738261336235,0.645132,105250.0,105240.0,0.96973249]
[1738261336939,0.75887293,105250.0,105240.0,0.19005]
[1738261338441,0.86296309,105250.0,105240.0,0.19005]
[1738261338635,0.20804093,105250.0,105240.0,0.19005]
[1738261338838,0.11474093,105250.0,105240.0,0.78583032]
[1738261339044,0.11474093,105250.0,105240.0,0.84743032]
[1738261339234,0.19978766,105250.0,105240.0,0.84743032]
[1738261340049,0.19878766,105250.0,105240.0,0.64125]
[1738261340242,0.19878766,105250.0,105240.0,0.74634016]
[1738261340444,0.19878766,105250.0,105240.0,2.25846867]
[1738261340936,0.19878766,105250.0,105240.0,2.25946867]
[1738261343443,0.19878766,105250.0,105240.0,2.25950867]
[1738261343943,0.00014258,105260.0,105240.0,2.06945867]
[1738261344143,0.00014258,105260.0,105250.0,0.29412216]
[1738261345135,0.00014258,105260.0,105250.0,0.32096216]
[1738261346243,0.00014258,105260.0,105250.0,0.32296216]
[1738261347136,0.00014258,105260.0,105250.0,0.32396216]
[1738261347338,0.00014258,105260.0,105250.0,1.82396216]
[1738261347537,0.00014258,105260.0,105250.0,1.79712216]
[1738261347745,0.00014258,105260.0,105250.0,1.82392216]
[1738261348746,0.00014258,105260.0,105250.0,2.18472216]
[1738261349131,0.00014258,105260.0,105250.0,2.24472216]
[1738261349347,0.00014258,105260.0,105250.0,2.27512216]
[1738261349739,0.00014258,105260.0,105250.0,2.21512216]
[1738261350540,0.00014258,105260.0,105250.0,2.27512216]
[1738261352240,0.00014258,105260.0,105250.0,0.77512216]
[1738261352837,0.00014258,105260.0,105250.0,2.27512216]
[1738261358239,0.00142566,105280.0,105250.0,2.08509016]
[1738261358439,0.26458766,105290.0,105280.0,0.189978]
[1738261358654,0.26458766,105290.0,105280.0,0.65486816]
[1738261358655,0.19878766,105290.0,105280.0,0.65486816]
[1738261358854,0.19878766,105290.0,105280.0,2.18166816]
[1738261359742,0.19878766,105290.0,105280.0,2.24356816]
[1738261359956,0.20278766,105290.0,105280.0,2.24356816]
[1738261360157,0.20378766,105290.0,105280.0,2.24356816]
[1738261361547,0.20378766,105290.0,105280.0,0.68158816]
[1738261362055,0.20378766,105290.0,105280.0,2.18158816]
[1738261362560,0.20378766,105290.0,105280.0,0.68158816]
[1738261362956,0.20378766,105290.0,105280.0,2.18158816]
[1738261363256,0.005,105290.0,105280.0,2.18158816]
[1738261364050,0.005,105290.0,105280.0,2.19076276]
[1738261366656,0.0355,105290.0,105280.0,2.19076276]
[1738261369256,0.005,105290.0,105280.0,2.21076276]
[1738261369656,0.005,105290.0,105280.0,2.19076276]
[1738261371755,0.005,105290.0,105280.0,0.69076276]
[1738261372155,0.005,105290.0,105280.0,2.19076276]
[1738261374156,0.09004673,105290.0,105280.0,2.19076276]
[1738261375863,0.09004673,105290.0,105280.0,2.24076276]
[1738261376064,0.09004673,105290.0,105280.0,2.19076276]
[1738261376863,0.09004673,105290.0,105280.0,2.19052276]
[1738261378261,0.09004673,105290.0,105280.0,1.82972276]
[1738261379268,0.09004673,105290.0,105280.0,1.80324276]
[1738261379462,0.74489689,105290.0,105280.0,0.0091746]
[1738261379767,0.189978,105280.0,105270.0,0.19013858]
[1738261379968,0.581978,105280.0,105270.0,0.19013858]
[1738261380955,0.581978,105280.0,105270.0,0.00014258]
[1738261381764,0.582978,105280.0,105270.0,0.00014258]
[1738261382366,0.68706816,105280.0,105270.0,0.00014258]
[1738261383070,0.80080909,105280.0,105270.0,0.00014258]
[1738261383567,0.189996,105270.0,105260.0,0.00909128]
[1738261383763,0.72018616,105270.0,105260.0,0.190014]
[1738261384780,0.190014,105260.0,105250.0,0.19159346]
[1738261385080,0.65490416,105260.0,105250.0,0.19159346]
[1738261385461,0.65490416,105260.0,105250.0,0.20098707]
[1738261385662,0.550814,105260.0,105250.0,0.20098707]
[1738261386062,0.550814,105260.0,105250.0,0.20498707]
[1738261386263,0.550814,105260.0,105250.0,0.20698707]
[1738261387276,0.65490416,105260.0,105250.0,0.20698707]
[1738261387576,0.65490416,105260.0,105250.0,0.00756746]
[1738261387766,0.65490416,105260.0,105250.0,0.00614258]
[1738261391276,0.91030375,105260.0,105250.0,0.00614258]
[1738261391672,1.02028975,105260.0,105220.0,0.00142546]
[1738261391873,0.65495816,105230.0,105220.0,0.19151146]
[1738261392172,0.65495816,105230.0,105220.0,0.00142546]
[1738261392376,0.71765816,105230.0,105220.0,0.00142546]
[1738261392867,0.71765816,105230.0,105220.0,0.00642546]
[1738261393266,0.71765816,105230.0,105220.0,0.01542546]
[1738261393680,0.71765816,105230.0,105220.0,0.20551146]
[1738261394476,0.71765816,105230.0,105220.0,0.20451146]
[1738261396180,0.71765816,105230.0,105220.0,0.01442546]
[1738261396878,0.613568,105230.0,105220.0,0.01442546]
[1738261398376,0.613568,105230.0,105220.0,0.30860162]
[1738261398572,0.581568,105230.0,105220.0,0.20451146]
[1738261399172,0.68565816,105230.0,105220.0,0.01442546]
[1738261399372,0.646068,105230.0,105220.0,0.01442546]
[1738261399882,0.646068,105230.0,105220.0,0.20451146]
[1738261401381,0.75015816,105230.0,105220.0,0.20451146]
[1738261401581,0.646068,105230.0,105220.0,0.20451146]
[1738261402383,0.75015816,105230.0,105220.0,0.20451146]
[1738261402777,0.75015816,105230.0,105220.0,0.203086]
[1738261403082,0.646068,105230.0,105220.0,0.203086]
[1738261403289,0.75015816,105230.0,105220.0,0.203086]
[1738261404269,0.646068,105230.0,105220.0,0.203086]
[1738261405484,0.75015816,105230.0,105220.0,0.203086]
[1738261406374,0.646068,105230.0,105220.0,0.203086]
[1738261407580,0.614168,105230.0,105220.0,0.203086]
[1738261409478,0.71825816,105230.0,105220.0,0.203086]
[1738261411088,0.81258955,105230.0,105220.0,0.203086]
[1738261411478,0.91667971,105230.0,105220.0,0.203086]
[1738261411679,0.91667971,105230.0,105220.0,1.703086]
[1738261412387,0.81258955,105230.0,105220.0,1.703086]
[1738261413290,0.81258955,105230.0,105220.0,0.203086]
[1738261413496,0.91667971,105230.0,105220.0,0.203086]
[1738261414591,0.86018726,105230.0,105220.0,0.203086]
[1738261417291,0.7560971,105230.0,105220.0,0.203086]
[1738261417989,0.7253971,105230.0,105220.0,0.203086]
[1738261418586,0.82948726,105230.0,105220.0,0.203086]
[1738261421791,0.82948726,105230.0,105220.0,0.013]
[1738261422098,0.89148726,105230.0,105220.0,0.013]
[1738261422390,0.190122,105200.0,105190.0,0.25445469]
[1738261422692,0.65501216,105200.0,105190.0,0.22305469]
[1738261422892,0.68621216,105200.0,105190.0,0.22305469]
[1738261423484,0.68621216,105200.0,105190.0,0.22805469]
[1738261423885,0.68621216,105200.0,105190.0,0.19655469]
[1738261424686,0.13529016,105200.0,105190.0,0.55735469]
[1738261424892,0.49633274,105210.0,105200.0,0.190122]
[1738261424893,0.19915721,105210.0,105200.0,0.190122]
[1738261425098,0.19915721,105210.0,105200.0,0.32731216]
[1738261425486,0.19915721,105210.0,105200.0,0.223222]
[1738261425987,0.19915721,105210.0,105200.0,0.226222]
[1738261426594,0.20015721,105210.0,105200.0,0.235222]
[1738261427198,0.20015721,105210.0,105200.0,0.33931216]
[1738261428398,0.20015721,105210.0,105200.0,0.33531216]
[1738261428898,0.11492292,105210.0,105200.0,0.33531216]
[1738261430487,0.11492292,105210.0,105200.0,0.72263216]
[1738261431196,0.11492292,105210.0,105200.0,0.73176577]
[1738261432197,0.11492292,105210.0,105200.0,0.34444577]
[1738261432394,0.63737286,105210.0,105200.0,0.24035561]
[1738261433084,0.44726886,105210.0,105200.0,0.24035561]
[1738261433691,0.63737286,105210.0,105200.0,0.24035561]
[1738261434091,0.66797286,105210.0,105200.0,0.24035561]
[1738261434993,0.77206302,105210.0,105200.0,0.20725561]
[1738261435194,0.77206302,105210.0,105200.0,0.01713361]
[1738261435400,0.77206302,105210.0,105200.0,0.008]
[1738261435699,0.80306302,105210.0,105200.0,0.008]
[1738261436095,0.69897286,105210.0,105200.0,0.198122]
[1738261436291,0.69897286,105210.0,105200.0,0.30221216]
[1738261436491,0.72742692,105210.0,105200.0,0.198122]
[1738261438301,0.73671453,105210.0,105200.0,0.198122]
[1738261439703,0.72742692,105210.0,105200.0,0.30221216]
[1738261440401,0.53732292,105210.0,105200.0,0.30221216]
[1738261440607,0.47572292,105210.0,105200.0,0.30221216]
[1738261440812,0.47572292,105210.0,105200.0,0.33531216]
[1738261442609,0.47572292,105210.0,105200.0,0.30221216]
[1738261442907,0.63736191,105210.0,105200.0,0.30221216]
[1738261443209,0.67056191,105210.0,105200.0,0.198122]
[1738261447106,0.69902692,105210.0,105200.0,0.198122]
[1738261448808,0.69902692,105210.0,105200.0,0.30221216]
[1738261450111,0.47572292,105210.0,105200.0,0.30221216]
[1738261451506,0.76991708,105210.0,105200.0,0.008]
[1738261451710,0.79991708,105210.0,105200.0,0.008]
[1738261451916,0.72782692,105210.0,105200.0,0.008]
[1738261452219,0.83191708,105210.0,105200.0,0.008]
[1738261452517,0.72782692,105210.0,105200.0,0.008]
[1738261453102,0.77246324,105210.0,105180.0,0.190145]
[1738261453315,0.190159,105180.0,105170.0,0.21819215]
[1738261453617,0.550959,105180.0,105170.0,0.29568231]
[1738261454512,0.583659,105180.0,105170.0,0.31383695]
[1738261455418,0.583659,105180.0,105170.0,0.31783695]
[1738261456609,0.583659,105180.0,105170.0,0.30983695]
[1738261458420,0.583659,105180.0,105170.0,0.20574679]
[1738261458719,0.66901288,105180.0,105170.0,0.20574679]
[1738261458922,0.66901288,105180.0,105170.0,0.30983695]
[1738261459619,0.47885388,105180.0,105170.0,0.30983695]
[1738261460228,0.11805388,105180.0,105170.0,0.30983695]
[1738261460719,0.47885388,105180.0,105170.0,0.30983695]
[1738261462220,0.44715388,105180.0,105170.0,0.30983695]
[1738261462420,0.08635388,105180.0,105170.0,0.30983695]
[1738261464019,0.08635388,105180.0,105170.0,0.33635695]
[1738261465518,0.001,105180.0,105170.0,0.33635695]
[1738261467635,0.001,105180.0,105170.0,0.67063695]
[1738261467928,0.001,105180.0,105170.0,0.69715695]
[1738261468425,0.001,105180.0,105170.0,0.33635695]
[1738261469119,0.08635388,105180.0,105170.0,0.33635695]
[1738261472328,0.08635388,105180.0,105170.0,0.69715695]
[1738261472529,0.001,105180.0,105170.0,0.69715695]
[1738261472729,0.001,105180.0,105170.0,0.33635695]
[1738261474033,0.001,105180.0,105170.0,0.69715695]
[1738261474924,0.001,105180.0,105170.0,0.33635695]
[1738261481028,0.44715388,105180.0,105170.0,0.33635695]
[1738261481234,0.08635388,105180.0,105170.0,0.33635695]
[1738261481934,0.44715388,105180.0,105170.0,0.30983695]
[1738261482136,0.63731288,105180.0,105170.0,0.20574679]
[1738261482338,0.77300304,105180.0,105170.0,0.20574679]
[1738261482648,0.83740304,105180.0,105170.0,0.20574679]
[1738261482945,0.83740304,105180.0,105170.0,0.01558079]
[1738261483442,0.83740304,105180.0,105170.0,0.01415464]
[1738261484549,0.83740304,105180.0,105170.0,0.005]
[1738261486241,0.89427459,105180.0,105170.0,0.005]
[1738261486442,0.80820575,105180.0,105150.0,0.47390736]
[1738261486642,1.01588516,105160.0,105150.0,0.47390736]
[1738261486849,0.911795,105160.0,105150.0,0.47390736]
[1738261487149,1.007395,105160.0,105150.0,0.47390736]
[1738261487746,1.007395,105160.0,105150.0,0.47890736]